bitfinex/quotes_ETHUSD_20240707
["timestamp","ask_amount","ask_price","bid_price","bid_amount"]
[1720330389385,1.78509175,3040.3,3039.6,2.30293]
[1720330389885,1.37798824,3040.3,3040.0,2.30256]
[1720330390088,1.37798824,3040.6,3040.2,2.30248]
[1720330390254,1.37798824,3040.7,3040.2,2.30248]
[1720330391381,1.37798824,3040.9,3040.2,2.30248]
[1720330391581,1.37798824,3040.8,3040.2,2.30248]
[1720330391785,2.14498704,3040.9,3040.2,2.30248]
[1720330393401,1.37798824,3040.9,3040.2,2.30248]
[1720330393699,1.37798824,3040.9,3040.3,2.30239]
[1720330394001,1.37798824,3040.9,3040.4,2.30232]
[1720330394788,1.37798824,3041.0,3040.4,2.30232]
[1720330394991,1.13853691,3040.9,3040.4,2.30232]
[1720330395291,1.37798824,3041.0,3040.4,2.30232]
[1720330396258,2.30173,3041.2,3040.4,2.30232]
[1720330396597,1.37718475,3041.0,3040.4,2.30232]
[1720330396773,1.13850325,3040.9,3040.4,2.30232]
[1720330396969,1.37725516,3041.0,3040.4,2.30232]
[1720330397173,1.1385071,3040.9,3040.4,2.30232]
[1720330397475,1.37725516,3041.0,3040.4,2.30232]
[1720330397689,1.13850753,3040.9,3040.4,2.30232]
[1720330397887,1.37725516,3041.0,3040.4,2.30232]
[1720330398062,1.13850724,3040.9,3040.4,2.30232]
[1720330398265,1.37725516,3041.0,3040.4,2.30232]
[1720330398505,1.13851769,3040.9,3040.4,2.30232]
[1720330398798,1.37725516,3041.0,3040.5,2.30224]
[1720330398981,1.13850461,3040.9,3040.5,2.30224]
[1720330399175,1.37725516,3041.0,3040.6,2.30217]
[1720330399377,1.13850303,3040.9,3040.6,2.30217]
[1720330399594,1.3772382,3041.1,3040.6,2.30217]
[1720330399797,1.13847688,3041.0,3040.6,2.30217]
[1720330400098,1.13847688,3040.9,3040.6,2.30217]
[1720330400278,1.13847688,3041.0,3040.6,2.30217]
[1720330402910,1.1384782,3040.9,3040.6,2.30217]
[1720330403096,1.37727691,3041.1,3040.6,2.30217]
[1720330403402,1.13847797,3041.0,3040.6,2.30217]
[1720330403594,1.13847797,3040.9,3040.6,2.30217]
[1720330403794,1.13847797,3041.0,3040.6,2.30217]
[1720330405800,2.10247797,3041.0,3040.6,2.30217]
[1720330406015,0.964,3041.0,3040.6,2.30217]
[1720330406904,1.37731389,3041.1,3040.6,2.30217]
[1720330408304,2.39035549,3041.2,3040.6,2.30217]
[1720330408482,2.51577274,3041.1,3040.6,2.30217]
[1720330408677,1.37731389,3041.1,3040.6,2.30217]
[1720330408896,1.96303918,3041.1,3040.6,2.30217]
[1720330409506,2.51577901,3041.0,3040.6,2.30217]
[1720330409669,2.34131389,3041.0,3040.5,2.30224]
[1720330409873,1.13852462,3040.9,3040.5,2.30224]
[1720330410122,2.34131389,3041.0,3040.5,2.30224]
[1720330410421,2.34131389,3041.0,3040.4,4.71951]
[1720330410422,2.34131389,3041.0,3040.4,2.4172]
[1720330410626,0.46493032,3040.9,3040.4,5.4172]
[1720330410773,1.84224421,3040.9,3040.4,3.0]
[1720330410973,1.84224421,3040.9,3040.3,2.30235]
[1720330411417,1.37731389,3040.8,3040.3,2.30235]
[1720330413198,5.32639171,3040.8,3040.1,5.2673]
[1720330413405,2.34131389,3040.6,3039.8,2.30273]
[1720330413586,4.64348389,3040.6,3039.8,2.30273]
[1720330413777,2.51598369,3040.5,3039.8,2.30273]
[1720330413987,1.37731389,3040.5,3039.8,2.30273]
[1720330414192,1.37731389,3040.4,3039.8,2.30273]
[1720330414686,1.37731389,3040.5,3039.9,2.3027]
[1720330414885,1.37731389,3040.5,3039.9,5.3027]
[1720330415305,1.37731389,3040.5,3039.9,2.3027]
[1720330416503,1.1386775,3040.4,3039.9,2.3027]
[1720330416705,1.37731389,3040.5,3039.9,2.3027]
[1720330417009,1.13867983,3040.4,3040.0,2.30261]
[1720330417214,1.37731389,3040.5,3040.0,5.30261]
[1720330417512,1.13867107,3040.4,3040.0,5.30261]
[1720330417713,1.37731389,3040.5,3040.0,5.30261]
[1720330417914,1.1386698,3040.4,3040.0,5.30261]
[1720330418118,1.37731389,3040.5,3040.0,5.30261]
[1720330418414,1.13866893,3040.4,3040.0,5.30261]
[1720330418613,1.37731389,3040.5,3040.0,5.30261]
[1720330418614,1.13866893,3040.3,3040.0,5.30261]
[1720330418791,1.37731389,3040.5,3040.0,5.30261]
[1720330418991,1.13867046,3040.4,3040.0,5.30261]
[1720330419193,1.13867046,3040.3,3040.0,5.30261]
[1720330419412,1.37923896,3040.5,3040.0,5.30261]
[1720330419603,1.13867091,3040.4,3040.0,5.30261]
[1720330419913,1.13867091,3040.3,3040.0,5.30261]
[1720330420083,1.37923896,3040.5,3040.0,5.30261]
[1720330420286,1.13866924,3040.4,3040.0,5.30261]
[1720330420485,1.13866924,3040.3,3040.0,5.30261]
[1720330420686,1.37923896,3040.5,3040.0,5.30261]
[1720330421016,1.1386638,3040.4,3040.0,5.30261]
[1720330421234,1.1386638,3040.3,3040.0,5.30261]
[1720330421381,1.37923896,3040.5,3040.0,5.30261]
[1720330421584,1.13865126,3040.4,3040.0,2.30261]
[1720330421932,1.13865126,3040.3,3040.0,2.30261]
[1720330422143,1.13865126,3040.4,3040.0,2.30261]
[1720330425349,1.37924097,3040.5,3040.0,2.30261]
[1720330425490,1.13865564,3040.4,3040.0,2.30261]
[1720330425686,1.37924097,3040.5,3040.0,2.30261]
[1720330426042,2.51791207,3040.4,3039.8,5.30273]
[1720330426353,1.1386711,3040.3,3039.8,5.30273]
[1720330427634,1.13872175,3040.2,3039.8,5.30273]
[1720330427821,1.37924097,3040.3,3039.8,5.30273]
[1720330428017,1.13872607,3040.2,3039.8,5.30273]
[1720330428241,1.37924097,3040.3,3039.8,5.30273]
[1720330428405,1.37924097,3040.3,3038.9,14.6834]
[1720330428406,3.441218,3040.2,3039.3,7.23]
[1720330428608,2.51799717,3040.1,3039.2,2.30319]
[1720330428805,2.51799717,3040.0,3039.2,2.30319]
[1720330429046,1.1387562,3039.9,3039.2,2.30319]
[1720330429613,1.1387562,3039.9,3039.2,5.30319]
[1720330429813,1.1387562,3039.9,3039.4,2.30308]
[1720330430129,1.37924097,3040.0,3039.4,2.30308]
[1720330430334,1.13886622,3039.9,3039.4,2.30308]
[1720330430542,1.37924097,3040.0,3039.4,2.30308]
[1720330430750,1.13886889,3039.9,3039.4,2.30308]
[1720330430968,1.37924097,3039.9,3039.3,3.0]
[1720330431113,1.37924097,3039.9,3039.3,5.3031]
[1720330435758,1.3796209,3039.9,3039.4,3.0]
[1720330435932,1.3796209,3039.9,3039.3,2.3031]
[1720330436532,1.3796209,3039.9,3039.2,3.0]
[1720330436734,1.3796209,3039.9,3039.2,5.30323]
[1720330437040,3.7075209,3039.9,3039.2,5.30323]
[1720330438237,3.70712514,3039.9,3039.2,5.30323]
[1720330439253,2.34322514,3040.0,3039.3,2.30315]
[1720330439585,1.13888827,3039.9,3039.3,2.30315]
[1720330439784,4.64586514,3040.0,3039.3,2.30315]
[1720330441774,3.26664,3040.0,3039.3,2.30315]
[1720330442141,1.13890939,3039.9,3039.3,2.30315]
[1720330442343,4.64586514,3040.0,3039.3,2.30315]
[1720330442541,1.1389175,3039.9,3039.3,2.30315]
[1720330442743,5.74584386,3040.0,3039.3,2.30315]
[1720330443043,1.13891775,3039.9,3039.3,2.30315]
[1720330443290,5.74584386,3040.0,3039.3,2.30315]
[1720330443445,1.13889649,3039.9,3039.3,2.30315]
[1720330443645,5.74584386,3040.0,3039.3,2.30315]
[1720330444083,1.13889086,3039.9,3039.3,2.30315]
[1720330444243,4.36661872,3040.0,3039.3,2.30315]
[1720330444443,1.13888346,3039.9,3039.3,2.30315]
[1720330444637,4.36661872,3040.0,3039.3,2.30315]
[1720330444960,1.1389203,3039.9,3039.3,2.30315]
[1720330445175,5.74526741,3040.0,3039.3,2.30315]
[1720330445493,1.13892198,3039.9,3039.3,2.30315]
[1720330445696,1.13892198,3039.8,3039.3,2.30315]
[1720330445904,5.74526741,3040.0,3039.3,2.30315]
[1720330446115,2.11857292,3039.9,3039.3,2.30315]
[1720330446266,1.13892509,3039.8,3039.3,2.30315]
[1720330446455,1.13892509,3039.8,3039.2,3.0]
[1720330446659,0.964,3039.6,3039.1,2.4443]
[1720330447009,3.87033538,3039.6,3039.0,2.30336]
[1720330447173,3.87033538,3039.6,3038.8,2.30352]
[1720330447174,0.964,3039.4,3038.8,2.30352]
[1720330448471,6.00956869,3039.5,3038.8,2.30352]
[1720330448472,0.964,3039.2,3038.8,2.30352]
[1720330448691,0.964,3039.2,3038.8,3.0]
[1720330448861,0.964,3039.2,3038.7,7.68351]
[1720330449055,6.00956869,3039.5,3038.7,7.68351]
[1720330449298,5.59492,3039.5,3038.8,2.30353]
[1720330449504,5.59492,3039.5,3038.8,5.30353]
[1720330450387,1.13909702,3039.4,3038.8,5.30353]
[1720330450564,5.59492,3039.5,3038.8,5.30353]
[1720330452462,1.13909021,3039.4,3038.8,5.30353]
[1720330452695,5.59492,3039.5,3038.8,5.30353]
[1720330452887,1.13909548,3039.4,3038.8,5.30353]
[1720330453072,5.59492,3039.5,3038.8,5.30353]
[1720330453307,1.13911254,3039.4,3038.8,5.30353]
[1720330453505,5.59492,3039.5,3038.8,5.30353]
[1720330453712,1.13905922,3039.4,3038.8,5.30353]
[1720330453996,5.59492,3039.5,3038.8,5.30353]
[1720330454223,1.1390964,3039.4,3038.8,5.30353]
[1720330454453,5.59492,3039.5,3038.8,5.30353]
[1720330454612,1.13909668,3039.4,3038.8,5.30353]
[1720330454823,5.59492,3039.5,3038.8,5.30353]
[1720330454998,1.13908467,3039.4,3038.8,5.30353]
[1720330455204,5.59492,3039.5,3038.8,3.0]
[1720330455535,1.89413187,3039.4,3038.8,3.0]
[1720330455697,2.10310064,3039.3,3038.8,3.0]
[1720330455893,0.964,3039.3,3038.8,3.0]
[1720330456141,0.964,3039.3,3038.6,5.30368]
[1720330456345,0.964,3039.3,3038.7,2.3036]
[1720330457593,3.70509073,3039.5,3038.7,2.3036]
[1720330457796,1.13911461,3039.4,3038.7,2.3036]
[1720330457995,6.97212073,3039.5,3038.7,2.3036]
[1720330458234,1.13910699,3039.4,3038.7,2.3036]
[1720330458430,1.13910699,3039.3,3038.8,2.4263137]
[1720330458740,1.37719073,3039.7,3039.2,4.66373]
[1720330458943,1.13898797,3039.6,3039.2,2.3605]
[1720330459159,0.964,3039.7,3039.0,2.30337]
[1720330459478,2.51618271,3039.6,3039.0,5.30337]
[1720330459737,1.13899198,3039.5,3039.0,5.30337]
[1720330459936,1.13904412,3039.4,3039.0,5.30337]
[1720330460100,2.34119073,3039.7,3039.0,5.30337]
[1720330460307,1.13901417,3039.6,3039.0,5.30337]
[1720330460644,1.13901417,3039.5,3039.0,5.30337]
[1720330462431,1.13901417,3039.5,3039.1,2.30329]
[1720330462927,1.13901417,3039.5,3039.0,5.30337]
[1720330463095,2.4545,3039.6,3039.0,5.30337]
[1720330463452,4.81970166,3039.5,3039.0,3.0]
[1720330463594,1.13909233,3039.4,3038.8,5.30352]
[1720330463935,1.13909233,3039.3,3038.8,5.30352]
[1720330464139,2.30301,3039.5,3038.8,5.30352]
[1720330464328,1.1390539,3039.4,3038.8,5.30352]
[1720330464558,2.30301,3039.5,3038.8,5.30352]
[1720330464930,1.13909447,3039.4,3038.8,5.30352]
[1720330465135,2.30301,3039.5,3038.8,5.30352]
[1720330465455,1.13905353,3039.4,3038.8,5.30352]
[1720330465606,2.30301,3039.5,3038.8,5.30352]
[1720330465800,1.13905199,3039.4,3038.8,5.30352]
[1720330466005,2.30301,3039.5,3038.8,5.30352]
[1720330466549,1.13905182,3039.4,3038.8,5.30352]
[1720330466846,3.83217376,3039.6,3038.8,5.30352]
[1720330467146,1.1390349,3039.5,3038.8,5.30352]
[1720330467299,1.1390349,3039.4,3038.8,5.30352]
[1720330467502,1.37767376,3039.5,3038.8,5.30352]
[1720330467703,1.13905183,3039.4,3038.8,5.30352]
[1720330468044,1.37767376,3039.5,3038.8,5.30352]
[1720330468247,1.13905073,3039.4,3038.8,5.30352]
[1720330468417,1.37767376,3039.5,3038.8,5.30352]
[1720330468598,1.13905059,3039.4,3038.8,5.30352]
[1720330468805,1.13907798,3039.3,3038.8,5.30352]
[1720330469005,1.37767376,3039.5,3038.8,5.30352]
[1720330469205,1.13908747,3039.4,3038.8,5.30352]
[1720330469649,1.13908783,3039.3,3038.8,5.30352]
[1720330469806,1.37767376,3039.5,3038.8,5.30352]
[1720330470005,2.516742,3039.4,3038.8,5.30352]
[1720330470333,1.13906824,3039.3,3038.8,5.30352]
[1720330471922,2.516742,3039.3,3038.8,5.30352]
[1720330472132,1.13906824,3039.2,3038.8,5.30352]
[1720330472751,1.37767376,3039.3,3038.8,5.30352]
[1720330472965,1.13910757,3039.2,3038.8,5.30352]
[1720330473171,1.37767376,3039.3,3038.8,5.30352]
[1720330473457,1.13910536,3039.2,3038.8,5.30352]
[1720330473608,1.37767376,3039.3,3038.8,5.30352]
[1720330473808,1.139118,3039.2,3038.8,5.30352]
[1720330474015,1.37767376,3039.3,3038.8,5.30352]
[1720330474243,1.13908359,3039.2,3038.8,5.30352]
[1720330474414,1.37767376,3039.3,3038.8,5.30352]
[1720330474623,1.13908192,3039.2,3038.8,5.30352]
[1720330474826,1.37767376,3039.3,3038.8,5.30352]
[1720330475030,1.1390621,3039.2,3038.8,5.30352]
[1720330475355,1.37767376,3039.3,3038.8,5.30352]
[1720330475558,1.13906003,3039.2,3038.8,5.30352]
[1720330475713,1.37767376,3039.3,3038.8,5.30352]
[1720330475924,1.37767376,3039.3,3039.1,2.28]
[1720330476124,3.26671,3039.9,3039.1,2.28]
[1720330476125,1.38002077,3039.4,3039.1,2.28]
[1720330476353,1.38002077,3039.5,3039.1,2.28]
[1720330476520,1.13897768,3039.4,3039.1,2.28]
[1720330476721,1.13897768,3039.3,3039.1,2.28]
[1720330476967,1.38002077,3039.5,3039.2,2.30323]
[1720330477166,2.51902143,3039.4,3039.2,2.30323]
[1720330477368,1.13900066,3039.3,3039.2,2.30323]
[1720330480569,1.38029146,3039.6,3039.3,2.3031]
[1720330480767,1.13891235,3039.5,3039.3,2.3031]
[1720330480934,1.38029146,3039.7,3039.4,2.30308]
[1720330481140,1.13889293,3039.6,3039.4,2.30308]
[1720330481336,1.38029146,3039.7,3039.4,2.30308]
[1720330481547,1.13889103,3039.6,3039.4,2.30308]
[1720330481766,1.38029146,3039.7,3039.4,2.30308]
[1720330481932,1.13889545,3039.6,3039.4,2.30308]
[1720330482268,1.38029146,3039.7,3039.4,2.30308]
[1720330482743,1.38029146,3039.7,3039.5,2.303]
[1720330484441,1.38029146,3039.7,3039.3,2.30311]
[1720330484665,1.38029146,3039.7,3039.4,2.30308]
[1720330485670,1.38029146,3039.7,3039.2,5.30322]
[1720330485881,2.51922431,3039.6,3039.2,5.30322]
[1720330486057,1.38029146,3039.6,3039.2,5.30322]
[1720330486255,1.7251943,3039.7,3039.2,5.30322]
[1720330486256,2.51924801,3039.5,3039.2,3.0]
[1720330486463,2.51924801,3039.5,3039.1,3.0]
[1720330486464,1.38029146,3039.5,3039.1,3.0]
[1720330486660,1.38029146,3039.5,3039.0,2.30336]
[1720330487901,1.37996369,3039.5,3039.1,2.30331]
[1720330488396,1.37996369,3039.6,3039.1,2.30331]
[1720330489384,1.37996369,3039.6,3039.2,2.30323]
[1720330490251,1.37996369,3039.6,3039.0,2.30333]
[1720330490455,1.37996369,3039.5,3039.0,2.30333]
[1720330492158,1.38028739,3039.4,3039.0,2.30333]
[1720330492905,1.38028739,3039.5,3039.0,2.30333]
[1720330493386,1.38028739,3039.5,3039.1,2.3033]
[1720330494460,1.38028739,3039.6,3039.1,2.3033]
[1720330494973,1.38028739,3039.5,3039.1,2.3033]
[1720330495300,2.30279,3039.8,3039.1,2.3033]
[1720330495509,1.38042752,3039.6,3039.1,2.3033]
[1720330498217,1.38042752,3039.6,3039.2,2.3032]
[1720330498383,1.38042752,3039.7,3039.3,2.46]
[1720330498590,1.38042752,3039.7,3039.3,5.46]
[1720330499674,1.38042752,3039.7,3039.4,2.30307]
[1720330501626,3.76402752,3039.7,3039.3,3.0]
[1720330501916,3.76402752,3039.7,3039.0,4.76334]
[1720330501917,1.38071343,3039.5,3039.1,5.3033]
[1720330503123,1.38071343,3039.5,3039.2,3.0]
[1720330503325,1.38071343,3039.5,3039.1,2.3033]
[1720330503622,1.38071343,3039.5,3039.2,4.76322]
[1720330503913,1.38071343,3039.5,3039.3,5.30313]
[1720330506614,1.38071343,3039.6,3039.3,5.30313]
[1720330507606,1.38114301,3039.6,3039.3,5.30313]
[1720330508490,1.13891046,3039.5,3039.3,5.30313]
[1720330508680,1.38114301,3039.6,3039.3,5.30313]
[1720330509503,1.13890733,3039.5,3039.3,5.30313]
[1720330509725,1.38114301,3039.6,3039.3,5.30313]
[1720330509897,1.13890739,3039.5,3039.3,5.30313]
[1720330510097,1.38114301,3039.5,3039.3,5.30313]
[1720330510727,1.38146695,3039.5,3039.3,5.30313]
[1720330512010,1.38146695,3039.6,3039.3,5.30313]
[1720330512212,1.13892682,3039.5,3039.3,5.30313]
[1720330512411,1.38146695,3039.5,3039.3,5.30313]
[1720330512607,1.38146695,3039.6,3039.3,5.30313]
[1720330512928,1.13891986,3039.5,3039.3,5.30313]
[1720330513136,1.38146695,3039.5,3039.3,5.30313]
[1720330513442,1.38146695,3039.6,3039.3,5.30313]
[1720330513633,1.13892097,3039.5,3039.3,5.30313]
[1720330514032,1.38167549,3039.6,3039.3,5.30313]
[1720330514238,1.13891846,3039.5,3039.3,5.30313]
[1720330514437,1.38167549,3039.6,3039.3,5.30313]
[1720330514738,2.52060099,3039.5,3039.3,5.30313]
[1720330514946,1.38167549,3039.5,3039.3,5.30313]
[1720330515114,1.38167549,3039.6,3039.3,5.30313]
[1720330515313,2.52059789,3039.5,3039.3,5.30313]
[1720330515619,1.38167549,3039.5,3039.4,2.30308]
[1720330515820,1.38167549,3039.6,3039.5,4.60602]
[1720330516010,1.13887392,3039.6,3039.5,4.60602]
[1720330516940,1.38167549,3039.8,3039.6,2.30293]
[1720330517141,1.38167549,3039.8,3039.7,2.30285]
[1720330517343,2.52046413,3039.8,3039.7,2.30285]
[1720330520045,2.52046413,3039.8,3039.6,2.30292]
[1720330520046,1.13878864,3039.8,3039.6,2.30292]
[1720330520348,3.4088,3040.2,3039.6,2.30292]
[1720330520524,2.52097729,3039.7,3039.6,2.30292]
[1720330520733,1.38213725,3039.7,3039.6,2.30292]
[1720330520959,2.52096362,3039.7,3039.6,2.30292]
[1720330521934,2.86665285,3039.7,3039.6,2.30292]
[1720330523567,3.4088,3040.2,3039.6,2.30292]
[1720330523724,1.72806954,3039.7,3039.4,2.30308]
[1720330523929,2.52133854,3039.6,3039.4,2.30308]
[1720330524249,1.38246822,3039.6,3039.4,2.30308]
[1720330525039,1.38246822,3039.6,3039.3,3.0]
[1720330525245,1.38246822,3039.4,3039.0,5.30335]
[1720330525481,2.52148229,3039.3,3039.0,5.30335]
[1720330525692,1.38246822,3039.2,3039.0,5.30335]
[1720330526861,1.38246822,3039.3,3039.0,5.30335]
[1720330529157,3.82726822,3039.2,3038.6,4.59546]
[1720330529351,3.82726822,3039.2,3038.4,2.30384]
[1720330529352,2.52152721,3039.1,3038.4,2.30384]
[1720330529602,1.38246822,3039.0,3038.4,2.30384]
[1720330529825,5.44828144,3039.2,3038.3,2.3039]
[1720330529826,3.71988633,3039.2,3038.3,2.3039]
[1720330529990,1.38252663,3038.9,3038.6,2.30369]
[1720330530498,1.38252663,3039.0,3038.6,2.30369]
[1720330531271,1.38252663,3038.9,3038.6,2.30369]
[1720330531772,1.38252663,3039.0,3038.6,2.30369]
[1720330532316,1.38252663,3038.9,3038.6,2.30369]
[1720330532473,1.38252663,3039.0,3038.6,2.30369]
[1720330532968,0.77504016,3039.1,3038.6,2.30369]
[1720330533173,1.38158064,3039.0,3038.6,2.30369]
[1720330533980,2.3015,3038.9,3038.4,3.0]
[1720330534190,0.36830806,3038.8,3038.3,3.0]
[1720330534481,1.7498887,3038.8,3038.2,7.59579]
[1720330534679,1.7498887,3038.8,3038.2,5.30399]
[1720330534978,1.7498887,3038.8,3038.2,2.30399]
[1720330535431,0.36830806,3038.8,3038.2,2.30399]
[1720330535579,0.40513887,3038.7,3038.2,2.30399]
[1720330536080,1.78671951,3038.7,3038.2,2.30399]
[1720330536280,1.78589408,3038.7,3038.1,3.0]
[1720330536628,1.78589408,3038.7,3038.0,2.30413]
[1720330537528,0.40513887,3038.7,3038.0,2.30413]
[1720330537678,0.40513887,3038.7,3038.1,2.30406]
[1720330538106,2.3015,3038.6,3038.1,2.30406]
[1720330538313,2.74707021,3038.6,3037.9,5.30418]
[1720330538811,2.74707021,3038.6,3038.0,2.30413]
[1720330539207,2.3015,3038.6,3038.0,2.30413]
[1720330539413,2.3015,3038.6,3037.9,3.0]
[1720330539925,5.98470936,3038.6,3037.9,2.3042]
[1720330540121,5.98470936,3038.6,3037.9,5.3042]
[1720330540298,5.98470936,3038.6,3037.9,2.3042]
[1720330540485,5.37740563,3038.6,3037.9,2.3042]
[1720330541691,3.07371563,3038.6,3037.9,2.3042]
[1720330541888,2.3015,3038.6,3037.9,2.3042]
[1720330542988,2.3015,3038.6,3038.0,2.30413]
[1720330547041,2.3015,3038.6,3038.2,2.30397]
[1720330547247,2.3015,3038.9,3037.9,0.964]
[1720330547450,3.2655,3038.9,3038.3,2.30385]
[1720330547634,1.83101439,3038.9,3038.2,2.30398]
[1720330547841,0.964,3038.7,3038.2,2.30398]
[1720330548041,2.3015,3038.6,3038.2,2.30398]
[1720330550849,4.54771948,3038.9,3038.3,2.30391]
[1720330550850,1.37724509,3038.9,3038.3,2.30391]
[1720330551039,2.4952,3039.0,3038.6,2.30369]
[1720330553588,2.4952,3039.0,3038.7,2.30361]
[1720330556513,1.13922834,3038.9,3038.7,2.30361]
[1720330556718,2.4952,3039.0,3038.7,2.30361]
[1720330556930,1.13922847,3038.9,3038.7,2.30361]
[1720330557148,2.4952,3039.0,3038.7,2.30361]
[1720330557462,1.13922835,3038.9,3038.7,2.30361]
[1720330557635,2.4952,3039.0,3038.7,2.30361]
[1720330557823,1.13922287,3038.9,3038.7,2.30361]
[1720330558028,2.4952,3039.0,3038.7,2.30361]
[1720330558227,1.13922847,3038.9,3038.7,2.30361]
[1720330558446,2.4952,3039.0,3038.7,2.30361]
[1720330558953,1.13922295,3038.9,3038.7,2.30361]
[1720330559116,2.4952,3039.0,3038.7,2.30361]
[1720330559320,1.13922008,3038.9,3038.8,2.30354]
[1720330559521,3.4592,3039.3,3038.9,2.30346]
[1720330559861,1.62275253,3039.2,3038.9,2.30346]
[1720330560051,1.13912144,3039.1,3038.9,2.30346]
[1720330560365,3.4592,3039.3,3038.9,2.30346]
[1720330560525,1.13910491,3039.2,3038.9,2.30346]
[1720330560722,1.13910491,3039.1,3038.9,2.30346]
[1720330560946,1.13910491,3039.2,3038.9,2.30346]
[1720330561158,1.1391119,3039.1,3038.9,2.30346]
[1720330561334,3.4592,3039.3,3038.9,2.30346]
[1720330561535,1.13911239,3039.2,3038.9,2.30346]
[1720330561751,1.13911239,3039.1,3038.9,2.30346]
[1720330562063,3.94283109,3039.3,3038.9,2.30346]
[1720330562270,1.13910682,3039.2,3038.9,2.30346]
[1720330562434,1.13910682,3039.1,3038.9,2.30346]
[1720330562766,1.13910682,3039.0,3038.9,2.30346]
[1720330562929,1.13910695,3039.2,3038.9,2.30346]
[1720330563268,1.13910671,3039.1,3038.9,2.30346]
[1720330563465,1.13910671,3039.0,3038.9,2.30346]
[1720330563763,3.4592,3039.3,3038.9,2.30346]
[1720330563972,1.13911975,3039.2,3039.0,0.230346]
[1720330564174,3.87231085,3039.6,3039.0,2.30338]
[1720330564461,1.37711085,3039.7,3039.3,2.30311]
[1720330564660,1.13897173,3039.6,3039.3,2.30311]
[1720330564831,2.4952,3039.8,3039.3,2.30311]
[1720330565025,1.13891381,3039.7,3039.3,2.30311]
[1720330565332,1.13893361,3039.6,3039.3,2.30311]
[1720330565526,4.75843703,3039.8,3039.3,2.30311]
[1720330565840,1.1389356,3039.7,3039.3,2.30311]
[1720330566031,4.75843703,3039.8,3039.3,2.30311]
[1720330566264,1.13892736,3039.7,3039.3,2.30311]
[1720330566427,4.75843703,3039.8,3039.3,2.30311]
[1720330566627,1.13893476,3039.7,3039.3,2.30311]
[1720330566868,3.38132618,3039.8,3039.3,2.30311]
[1720330567026,1.13891892,3039.7,3039.3,2.30311]
[1720330567227,4.75843703,3039.8,3039.3,2.30311]
[1720330567727,4.75957651,3039.8,3039.3,2.30311]
[1720330567956,3.87345033,3039.8,3039.3,2.30311]
[1720330568263,3.87346216,3039.8,3039.3,2.30311]
[1720330568574,1.37826216,3039.8,3039.5,2.30298]
[1720330568874,1.37826216,3039.9,3039.5,2.30298]
[1720330570928,1.37846792,3039.9,3039.5,2.30298]
[1720330571626,1.37846792,3040.0,3039.7,2.3028]
[1720330571826,4.03138491,3040.2,3039.7,2.3028]
[1720330571827,3.68676792,3040.2,3039.7,2.3028]
[1720330573053,3.68676792,3040.2,3039.8,2.30277]
[1720330573567,2.3083,3040.2,3039.8,2.30277]
[1720330588357,1.1387732,3040.1,3039.8,2.30277]
[1720330588716,2.3083,3040.2,3039.8,2.30277]
[1720330589679,1.13876024,3040.1,3039.8,2.30277]
[1720330589880,2.3083,3040.2,3039.8,2.30277]
[1720330590096,1.13876349,3040.1,3039.8,2.30277]
[1720330590445,2.3083,3040.2,3039.8,2.30277]
[1720330590601,1.13876376,3040.1,3039.8,2.30277]
[1720330590925,2.3083,3040.2,3039.8,2.30277]
[1720330591229,1.1387634,3040.1,3039.8,2.30277]
[1720330592229,2.3083,3040.2,3039.8,2.30277]
[1720330592388,1.13877988,3040.1,3039.8,2.30277]
[1720330592597,1.13877988,3040.0,3039.8,2.30277]
[1720330592924,2.3083,3040.2,3039.8,2.30277]
[1720330593230,1.13878054,3040.1,3039.8,2.30277]
[1720330593604,1.13879727,3040.0,3039.8,2.30277]
[1720330593789,1.13879727,3039.9,3039.8,2.30277]
[1720330593994,1.13879727,3040.1,3039.8,2.30277]
[1720330594322,1.13879727,3040.1,3039.6,5.30293]
[1720330594491,1.13879727,3040.1,3039.6,2.30293]
[1720330594892,2.10279727,3040.1,3039.6,2.30293]
[1720330595234,2.3141,3039.9,3039.1,2.30331]
[1720330595395,0.964,3039.7,3039.1,2.30331]
[1720330595590,3.45289727,3039.6,3038.8,2.30351]
[1720330595835,2.10279727,3039.5,3038.8,2.30351]
[1720330596043,1.13879727,3039.4,3038.8,2.30351]
[1720330596272,1.13907851,3039.3,3038.8,2.30351]
[1720330596410,1.13907851,3039.2,3038.8,2.30351]
[1720330596739,2.33950229,3039.5,3038.8,2.30351]
[1720330596926,1.13908516,3039.4,3039.0,3.0]
[1720330597128,0.964,3039.5,3039.0,3.0]
[1720330597297,1.13908007,3039.3,3039.0,3.0]
[1720330597636,4.65360229,3039.6,3039.0,3.0]
[1720330597794,1.13903906,3039.5,3039.0,3.0]
[1720330598000,1.13903906,3039.4,3039.0,3.0]
[1720330598344,3.2781,3039.6,3039.0,3.0]
[1720330598546,1.13902226,3039.5,3039.0,3.0]
[1720330598710,1.13902226,3039.4,3039.0,3.0]
[1720330598909,1.13902226,3039.5,3039.0,3.0]
[1720330599112,1.1389855,3039.4,3039.0,3.0]
[1720330599317,3.2781,3039.6,3039.0,3.0]
[1720330599609,1.13901891,3039.5,3039.0,3.0]
[1720330599813,1.37550229,3039.6,3039.1,2.276]
[1720330600042,2.3141,3039.8,3039.1,2.276]
[1720330600043,1.13898859,3039.5,3039.3,2.30311]
[1720330600203,3.68960229,3039.8,3039.3,2.30311]
[1720330600537,1.1389308,3039.7,3039.3,2.30311]
[1720330600696,1.1389308,3039.6,3039.3,2.30311]
[1720330600897,3.68960229,3039.8,3039.3,2.30311]
[1720330601098,2.51444278,3039.7,3039.3,2.30311]
[1720330601410,1.13894049,3039.6,3039.3,2.30311]
[1720330602538,1.13894049,3039.7,3039.3,2.30311]
[1720330602826,3.68960229,3039.8,3039.3,2.30311]
[1720330603028,1.37550229,3039.8,3039.3,2.30311]
[1720330603199,1.13887648,3039.7,3039.3,2.30311]
[1720330603531,1.37550229,3039.8,3039.3,2.30311]
[1720330603731,1.13887492,3039.7,3039.3,2.30311]
[1720330603953,1.37550229,3039.8,3039.4,2.30308]
[1720330604244,1.13887532,3039.7,3039.4,2.30308]